[Event "40th Cappelle Open 2024"]
[Site "Cappelle-la-Grande"]
[Date "2024.03.08"]
[Round "9.4"]
[White "Idani, Pouya"]
[Black "Degraeve, Remy"]
[Result "1-0"]
[ECO "A03"]
[WhiteElo "2609"]
[BlackElo "2447"]
[Annotator "RC"]
[PlyCount "119"]
[EventDate "2024.03.02"]
[EventType "swiss"]
[EventCountry "FRA"]
[SourceTitle "playchess.com"]
[Source "ChessBase"]
[SourceQuality "1"]
[TimeControl "40/5400+30:1800+30"]

1. g3 {[%emt 0:00:03]} d5 {[%emt 0:00:14]} 2. Bg2 {[%emt 0:00:05]} c5 {[%emt 0:01:07]} 3. f4 {[%emt 0:00:19]} g6 {[%emt 0:00:22]} 4. Nf3 {[%emt 0:00:06]} Bg7 {[%emt 0:00:03]} 5. d3 {[%emt 0:00:10]} Nf6 {[%emt 0:00:04]} 6. O-O {[%emt 0:00:10]} O-O {[%emt 0:00:04]} 7. c3 {[%emt 0:00:28]} Nc6 {[%emt 0:00:23]} 8. Na3 {[%emt 0:01:20]} Rb8 {[%emt 0:15:15]} 9. Ne5 {[%emt 0:04:37]} Qc7 {[%emt 0:20:58]} 10. Nxc6 {[%emt 0:10:18]} bxc6 {[%emt 0:05:01]} 11. e4 {[%emt 0:00:14]} c4 {[%emt 0:01:59]} 12. e5 {[%emt 0:01:28]} Qb6+ {[%emt 0:00:23]} 13. d4 {[%emt 0:13:11]} Ne8 {[%emt 0:00:51]} 14. Nc2 {[%emt 0:00:32]} f6 {[%emt 0:02:28]} 15. Ne3 {[%emt 0:03:53]} fxe5 {[%emt 0:03:14]} 16. dxe5 {[%emt 0:00:34]} Bf5 {[%emt 0:00:09]} 17. b3 {[%emt 0:06:50]} Bd3 {[%emt 0:04:13]} 18. Rf2 {[%emt 0:05:18]} Nc7 {[%emt 0:00:38]} 19. bxc4 {[%emt 0:04:26]} dxc4 {[%emt 0:00:05]} 20. Bf1 {[%emt 0:00:09]} Qa6 {[%emt 0:08:23]} 21. Bxd3 {[%emt 0:04:54]} cxd3 {[%emt 0:00:03]} 22. c4 {[%emt 0:00:10]} Rfd8 {[%emt 0:10:40]} 23. Rd2 {[%emt 0:07:28]} Qa5 {[%emt 0:00:32]} 24. Rxd3 {[%emt 0:01:30]} Ne6 {[%emt 0:00:04]} 25. Bd2 {[%emt 0:05:21]} Qc5 {[%emt 0:01:34]} 26. Bc3 {[%emt 0:00:35]} Rxd3 {[%emt 0:07:16]} 27. Qxd3 {[%emt 0:03:38]} Rd8 {[%emt 0:00:02]} 28. Qe4 {[%emt 0:02:29]} Qa3 {[%emt 0:01:32]} 29. Qc2 {[%emt 0:02:11]} Nd4 {[%emt 0:00:46]} 30. Bxd4 {[%emt 0:00:44]} Rxd4 {[%emt 0:00:03]} 31. Re1 {[%emt 0:05:48]} Rd3 {[%emt 0:00:06]} 32. Qe2 {[%emt 0:02:41]} Qc3 {[%emt 0:00:51]} 33. Nd1 {[%emt 0:02:28]} Qxc4 {[%emt 0:00:32]} 34. Nf2 {[%emt 0:00:15]} Rc3 {[%emt 0:00:07]} 35. Ne4 {[%emt 0:01:27]} Rc2 {[%emt 0:04:34]} 36. Qxc4+ {[%emt 0:01:56]} Rxc4 {[%emt 0:00:04]} 37. Kf2 {[%emt 0:00:07]} h6 {[%emt 0:00:04]} 38. Ke3 {[%emt 0:00:41]} Kf7 {[%emt 0:01:46]} 39. Kd3 {[%emt 0:03:05]} Rb4 {[%emt 0:02:50]} 40. Rc1 {[%emt 0:01:18]} Rb6 {[%emt 0:02:00]} 41. Rc4 {[%emt 0:36:44]} g5 {[%emt 0:11:58]} 42. Ra4 {[%emt 0:00:00]} gxf4 {[%emt 0:02:25]} 43. gxf4 {[%emt 0:00:00]} Rb2 {[%emt 0:01:18]} 44. h3 {[%emt 0:00:00]} Rh2 {[%emt 0:01:04]} 45. Rxa7 {[%emt 0:00:00]} Rxh3+ {[%emt 0:00:04]} 46. Kd4 {[%emt 0:00:00]} Rf3 {[%emt 0:01:44]} 47. Nd6+ {[%emt 0:00:00]} Kg8 {[%emt 0:02:52]} 48. Ke4 {[%emt 0:00:00]} Rf2 {[%emt 0:01:24]} 49. Rxe7 {[%emt 0:00:00]} Rxa2 {[%emt 0:02:34]} 50. Re8+ {[%emt 0:00:00]} Kh7 {[%emt 0:01:51]} 51. Nf5 {[%emt 0:00:00]} Ra4+ {[%emt 0:01:32]} 52. Kf3 {[%emt 0:00:00]} Kg6 {[%emt 0:00:03]} 53. Nxg7 {[%emt 0:00:00]} Kxg7 {[%emt 0:00:03]} 54. Re7+ {[%emt 0:00:00]} Kg6 {[%emt 0:02:17]} 55. Re6+ {[%emt 0:00:00]} Kh5 {[%emt 0:00:03]} 56. Rxc6 {[%emt 0:00:00]} Rb4 {[%emt 0:01:46]} 57. Rf6 {[%emt 0:00:00]} Ra4 {[%emt 0:02:04]} 58. e6 {[%emt 0:00:00]} Ra1 {[%emt 0:03:19]} 59. Ke4 {[%emt 0:00:00]} Rd1 {[%emt 0:03:53]} 60. Ke5 {[%emt 0:00:00]} 1-0

[Event "40th Cappelle Open 2024"]
[Site "Cappelle-la-Grande"]
[Date "2024.03.08"]
[Round "9.5"]
[White "Sasikiran, Krishnan"]
[Black "Tarhan, Adar"]
[Result "0-1"]
[ECO "E01"]
[WhiteElo "2578"]
[BlackElo "2432"]
[Annotator "TA"]
[PlyCount "118"]
[EventDate "2024.03.02"]
[EventType "swiss"]
[EventCountry "FRA"]
[SourceTitle "playchess.com"]
[Source "ChessBase"]
[SourceQuality "1"]
[TimeControl "40/5400+30:1800+30"]

{[%evp 41,118,0,0,0,0,-7,0,0,0,0,0,0,0,-10,-10,-53,-42,-93,-49,-65,-18,-168,-44,-39,-28,-158,-29,-35,-26,-32,-30,-33,-32,-204,-191,-199,-190,-202,-189,-186,-181,-317,-319,-431,-436,-462,-340,-625,-619,-611,-666,-695,-675,-525,-527,-775,-772,-1098,-1034,-1575,-1333,-1416,-1393,-2058,-2932,-2527,-1395,-2460,-1842,-5734,-4837,-29979,-29981,-29983,-29984,-29989,-29990,-29990,-29991]} 1. d4 {[%emt 0:00:10]} Nf6 {[%emt 0:00:07]} 2. c4 {[%emt 0:00:10]} e6 {[%emt 0:00:04]} 3. g3 {[%emt 0:00:17]} c5 {[%emt 0:00:23]} 4. Nf3 {[%emt 0:02:26]} cxd4 {[%emt 0:00:24]} 5. Nxd4 {[%emt 0:00:07]} d5 {[%emt 0:00:10]} 6. Bg2 {[%emt 0:00:17]} e5 {[%emt 0:00:53]} 7. Nf3 {[%emt 0:00:30]} d4 {[%emt 0:01:46]} 8. O-O {[%emt 0:01:02]} Nc6 {[%emt 0:01:34]} 9. e3 {[%emt 0:00:19]} Be7 {[%emt 0:09:20]} 10. exd4 {[%emt 0:01:22]} exd4 {[%emt 0:00:10]} 11. Re1 {[%emt 0:06:09] E01: Catalan: Early deviations.} O-O {[%emt 0:01:24]} 12. Bf4 {[%emt 0:01:32]} Be6 {[%emt 0:04:32]} 13. Nbd2 {[%emt 0:06:10]} Re8 {[%emt 0:03:17]} 14. a3 {[%emt 0:11:08]} a5 {[%emt 0:02:29]} 15. Ng5 $146 {[%emt 0:15:01]} ({Predecessor:} 15. Ne5 Ra6 16. Nb3 Nxe5 17. Bxe5 Bxc4 18. Nxd4 Bd5 19. Nf5 Bf8 20. Bxd5 Nxd5 21. Qd4 {½-½ Oparin,G (2606)-Moroni,L (2506) Wch U20 56th 2017 (10)}) 15... Bg4 {[%emt 0:03:19]} 16. Qb3 {[%emt 0:02:06]} Qd7 {[%emt 0:00:20]} 17. c5 {[%emt 0:15:43]} Bxc5 {[%emt 0:02:17]} 18. Nde4 {[%emt 0:01:20]} Nxe4 {[%emt 0:03:30]} 19. Bxe4 {[%emt 0:00:20]} Rxe4 {[%emt 0:10:20]} 20. Nxe4 {[%emt 0:00:11]} Bf8 {[%emt 0:00:13]} 21. f3 {[%emt 0:03:22]} a4 {[%emt 0:07:51]} 22. Qd3 {[%emt 0:02:31]} Be6 {[%emt 0:00:13]} 23. g4 {[%emt 0:04:41]} f6 {[%emt 0:02:31]} 24. g5 {[%emt 0:04:57]} f5 {[%emt 0:00:49]} 25. Nd2 {[%emt 0:02:08]} Qd5 {[%emt 0:09:54]} 26. Rac1 {[%emt 0:03:24]} b5 {[%emt 0:00:30]} 27. Nf1 {[%emt 0:04:57]} Bf7 {[%emt 0:05:08]} 28. Ng3 {[%emt 0:07:26]} g6 {[%emt 0:00:20]} 29. Ne2 {[%emt 0:00:48]} (29. Kg2 $15) 29... Re8 {[%emt 0:01:17]} 30. Kg2 {[%emt 0:02:56]} b4 {[%emt 0:17:35]} (30... Rd8 $1 $15) 31. Qa6 {[%emt 0:01:23]} (31. h4 $11 {and White is okay.}) 31... bxa3 {[%emt 0:03:13]} (31... d3 $1 $19 {[%cal Rd3d2]} 32. Rcd1 Qc4 (32... Rxe2+ 33. Rxe2 dxe2 34. Rxd5 $11) (32... bxa3 33. Nc3 $15) 33. Qxc4 Bxc4) 32. bxa3 $15 {[%emt 0:00:12]} Ne5 {[%emt 0:04:20]} 33. Ng1 {[%emt 0:00:29]} (33. Bxe5 $11 Rxe5 34. Qxa4) 33... Re6 {[%emt 0:01:05]} (33... Bxa3 $2 34. Rc8 (34. Rxe5 Rxe5 35. Bxe5 Qxe5 $14) 34... Rxc8 (34... Bd6 $2 35. Bxe5 Bxe5 36. Rxe8+ Bxe8 37. Qe2 $18) 35. Qxc8+ Bf8 36. Rxe5 $18 (36. Bxe5 d3 $18)) (33... Ra8 $17 34. Qf1 Nc4) 34. Qf1 $1 $11 {[%emt 0:00:54]} (34. Qxa4 Nd3 35. Bd2 Nxe1+ (35... Nxc1 36. Rxc1 Re8 37. Qa6 $19) 36. Rxe1 Rxe1 37. Bxe1 Qa2+ 38. Kh1 Qa1 $17 (38... Bxa3 39. Qxd4 Qd5 40. Qc3 $15)) 34... Nc4 {[%emt 0:01:12]} (34... Bxa3 35. Rc8+ Kg7 36. Bxe5+ Rxe5 37. Rxe5 Qxe5 38. Qa6 $11) 35. Rxe6 {[%emt 0:00:47]} Bxe6 {[%emt 0:00:11]} 36. Qd3 $1 {[%emt 0:00:31]} Nxa3 {[%emt 0:00:17]} (36... Bxa3 $2 {perishes.} 37. Rxc4 Qxc4 38. Qxa3 $18) 37. Ne2 $2 {[%emt 0:00:33]} (37. Qa6 $1 $15) 37... Nb5 $19 {[%emt 0:00:44]} 38. Bd2 {[%emt 0:00:37]} Qb3 $1 {[%emt 0:00:27]} 39. Nf4 {[%emt 0:00:22] [#]} Qxd3 $1 {[%emt 0:00:34]} 40. Nxd3 {[%emt 0:00:05]} a3 {[%emt 0:00:12]} 41. Bb4 {[%emt 0:03:07]} (41. Ra1 {keeps fighting.}) 41... a2 $19 {[%emt 0:05:16]} 42. Bxf8 {[%emt 0:03:15]} Kxf8 {[%emt 0:00:05]} 43. Ra1 {[%emt 0:00:21]} Nc3 {[%emt 0:05:25]} 44. Nb4 $2 {[%emt 0:03:44]} (44. Kf2 Ke7 45. Ke1) 44... Ke8 $19 {[%emt 0:03:15]} 45. Kf2 {[%emt 0:02:03] [#]} Kd7 $1 {[%emt 0:00:09]} 46. Ke1 {[%emt 0:01:20]} Kd6 {[%emt 0:00:38]} 47. Kd2 {[%emt 0:01:45]} Bc4 {[%emt 0:03:22]} 48. h4 {[%emt 0:03:07]} Kc5 {[%emt 0:05:25]} 49. Nxa2 {[%emt 0:02:28]} Bxa2 {[%emt 0:01:56]} 50. Re1 {[%emt 0:00:08]} Bd5 {[%emt 0:02:16]} 51. Re7 {[%emt 0:01:17]} Bxf3 {[%emt 0:00:05]} 52. Rxh7 {[%emt 0:00:06]} Ne4+ {[%emt 0:00:44]} 53. Kd3 {[%emt 0:00:16]} Kd5 {[%emt 0:00:13]} 54. Rd7+ {[%emt 0:00:34]} Nd6 {[%emt 0:00:04]} 55. Rd8 {[%emt 0:01:08]} f4 {[%emt 0:00:43]} 56. Rd7 {[%emt 0:00:40]} Bg4 {[%emt 0:00:51]} 57. Rd8 {[%emt 0:00:21]} f3 {[%emt 0:00:22]} 58. Rf8 {[%emt 0:00:07]} Bf5+ {[%emt 0:00:07]} 59. Kd2 {[%emt 0:00:05]} Ne4+ {[%emt 0:00:03]} 0-1

[Event "40th Cappelle Open 2024"]
[Site "Cappelle-la-Grande"]
[Date "2024.03.08"]
[Round "9.6"]
[White "Kanov, Nikola"]
[Black "Can, Emre"]
[Result "1-0"]
[ECO "B90"]
[WhiteElo "2424"]
[BlackElo "2551"]
[Annotator "TA"]
[PlyCount "73"]
[EventDate "2024.03.02"]
[EventType "swiss"]
[EventCountry "FRA"]
[SourceTitle "playchess.com"]
[Source "ChessBase"]
[SourceQuality "1"]
[TimeControl "40/5400+30:1800+30"]

{[%evp 13,73,19,31,16,10,-7,26,-21,-14,-9,0,-10,0,-22,-11,-8,21,7,12,8,0,7,10,-77,0,0,0,0,0,23,246,247,235,248,247,248,292,296,343,350,363,337,387,372,387,378,974,947,1097,1097,2607,2396,29977,360,347,0,29982,955,994,978,29987,29988]} 1. e4 {[%emt 0:00:03]} c5 {[%emt 0:00:13]} 2. Nf3 {[%emt 0:00:15]} d6 {[%emt 0:00:27]} 3. d4 {[%emt 0:00:16]} cxd4 {[%emt 0:00:08]} 4. Nxd4 {[%emt 0:00:07]} Nf6 {[%emt 0:00:10]} 5. Nc3 {[%emt 0:00:11]} a6 {[%emt 0:00:43]} 6. Be3 {[%emt 0:00:31]} e5 {[%emt 0:00:54]} 7. Nb3 {[%emt 0:00:31]} Be7 {[%emt 0:00:37]} 8. h3 {[%emt 0:01:01]} h6 {[%emt 0:00:30]} 9. Rg1 {[%emt 0:01:30]} Qc7 {[%emt 0:02:42]} 10. Qf3 {[%emt 0:01:26]} (10. g4 $142) 10... b5 $11 {[%emt 0:01:07][%cal Bb7b5,Bb5b4][%mdl 32]} 11. O-O-O {[%emt 0:02:08]} Nbd7 {[%emt 0:05:49]} 12. Kb1 {[%emt 0:08:58]} b4 {[%emt 0:01:02]} 13. Nd5 {[%emt 0:00:57]} Nxd5 {[%emt 0:00:09]} 14. exd5 {[%emt 0:00:22]} a5 {[%emt 0:00:43][%cal Ba6a5,Ba5a4,Ba4a3][%mdl 32]} 15. Bb5 {[%emt 0:13:06]} O-O {[%emt 0:05:59]} 16. g4 {[%emt 0:04:12]} a4 {[%emt 0:19:16]} 17. Nd2 {[%emt 0:01:34]} Nb6 {[%emt 0:04:32]} 18. Bd3 {[%emt 0:12:22] [#]} (18. Ne4 $11) 18... g6 {[%emt 0:24:51]} (18... a3 $1 $17 {[%cal Ra3b2] ...axb2 is the strong threat.} 19. Qe4 f5 20. gxf5 Bxf5 21. Bxh6 Bg5 (21... Bxe4 22. Rxg7+ Kh8 23. Bxe4 $16) 22. Rxg5 Bxe4 23. Nxe4 Rf7 (23... Nxd5 $2 24. Bxg7 Qxg7 25. Bc4 $18)) 19. Bxh6 {[%emt 0:03:47][%cal Od2e4]} a3 {[%emt 0:00:07][%cal Oa3b2] aiming for ...axb2!} 20. Bxf8 {[%emt 0:10:45]} Bxf8 {[%emt 0:05:04]} 21. Ne4 {[%emt 0:06:24] Nf6+ would now be deadly.} Bg7 {[%emt 0:09:56] [#] White leaves nothing to chance now.} (21... axb2 $1 $11 {and Black is okay.} 22. Nf6+ Kh8) 22. b3 $1 $18 {[%emt 0:13:50]} Bb7 {[%emt 0:00:31] [#]} 23. Bc4 {[%emt 0:03:51]} Rc8 {[%emt 0:05:25][%cal Ob6d5]} (23... Nxc4 24. bxc4) 24. Qe2 {[%emt 0:01:26]} Qd7 {[%emt 0:03:21]} 25. g5 {[%emt 0:02:55]} Nxc4 {[%emt 0:04:25]} 26. bxc4 {[%emt 0:00:05]} Ba6 {[%emt 0:01:25]} 27. Qg4 {[%emt 0:01:31]} Qd8 {[%emt 0:00:07] [#]} 28. c5 {[%emt 0:01:06]} dxc5 {[%emt 0:00:12]} 29. d6 {[%emt 0:01:10][%cal Bd5d6,Bd6d7][%mdl 32]} c4 $2 {[%emt 0:00:38]} (29... b3 30. axb3 (30. cxb3 Qa5 $18) 30... c4) 30. d7 {[%emt 0:01:02]} Rb8 {[%emt 0:00:08]} 31. Rd6 {[%emt 0:01:26]} Qa5 {[%emt 0:01:19]} 32. Rgd1 {[%emt 0:02:00]} Rd8 {[%emt 0:00:05]} 33. R6d5 $2 {[%emt 0:00:56]} (33. Rxg6 {mates} Kf8 34. Rxg7 Kxg7 35. Nf6 (35. Qf5 b3 $18) 35... b3 36. Qh5 (36. cxb3 Qc3 37. Ne8+ Kf8 38. Qe2 cxb3 39. Nf6 bxa2+ 40. Qxa2 Rb8+) 36... bxc2+ 37. Kxc2 Qa4+ 38. Kc1 Qxd1+ 39. Kxd1) 33... Qb6 {[%emt 0:00:59] Threatens to win with ...b3.} 34. Rd6 $2 {[%emt 0:00:34]} (34. Qf3 $18 Bb7 35. Rd6) 34... Qa5 {[%emt 0:01:31]} 35. R1d5 {[%emt 0:01:23]} (35. Rxg6 $142 Kf8 36. Rxg7 Kxg7 37. Nf6 (37. Qf5 b3 $18) 37... b3 38. Qh5 (38. cxb3 {is a self mate.} Qc3 39. Ne8+ Kf8) 38... bxc2+ 39. Kxc2 Qa4+ 40. Kc1) 35... Bb5 {[%emt 0:00:02]} 36. Qe2 {[%emt 0:00:50]} Bf8 {[%emt 0:01:06]} 37. Nf6+ {[%emt 0:00:30] Weighted Error Value: White=0.45/Black=0.56.  Loses game:     	---       	Black=1      Mistake:       	White=3     	Black=2      Inaccurate:     	---       	Black=2      OK:         	White=7     	Black=8      Best:        	White=4     	Black=3      Strong:       	White=1     	---        Brilliant:      	White=2     	---} 1-0

[Event "40th Cappelle Open 2024"]
[Site "Cappelle-la-Grande"]
[Date "2024.03.08"]
[Round "9.7"]
[White "Bellahcene, Bilel"]
[Black "Eugene, Floryan"]
[Result "0-1"]
[ECO "A13"]
[WhiteElo "2522"]
[BlackElo "2422"]
[Annotator "TA"]
[PlyCount "122"]
[EventDate "2024.03.02"]
[EventType "swiss"]
[EventCountry "FRA"]
[SourceTitle "playchess.com"]
[Source "ChessBase"]
[SourceQuality "1"]
[TimeControl "40/5400+30:1800+30"]

{[%evp 29,122,43,43,2,0,-9,16,0,0,-8,0,-33,-27,-37,-30,-18,-14,-36,-42,-44,-41,-75,-73,-73,-68,-74,-69,-61,-22,-16,-22,-29,0,0,0,0,0,0,0,0,0,0,17,18,21,8,19,17,17,20,18,8,14,5,5,5,34,5,12,0,0,0,0,0,0,0,0,0,0,0,0,0,0,0,0,0,0,0,0,0,0,0,0,0,0,0,0,-336,-329,-329,-320,-314,-306,-306,-282]} 1. Nf3 {[%emt 0:03:06]} d5 {[%emt 0:00:34]} 2. e3 {[%emt 0:00:25]} Nf6 {[%emt 0:00:37]} 3. c4 {[%emt 0:00:08]} e6 {[%emt 0:00:05]} 4. b3 {[%emt 0:01:15]} Bd6 {[%emt 0:01:14]} 5. Bb2 {[%emt 0:00:20]} O-O {[%emt 0:00:34]} 6. g3 {[%emt 0:00:12] A13: English Opening: 1...e6.} b6 {[%emt 0:12:59]} 7. Bg2 {[%emt 0:00:25]} Bb7 {[%emt 0:00:05]} 8. O-O {[%emt 0:00:23]} dxc4 {[%emt 0:00:52]} 9. bxc4 {[%emt 0:00:06]} c5 {[%emt 0:00:26]} 10. Nc3 {[%emt 0:00:20]} Nbd7 {[%emt 0:02:50]} 11. Qe2 $146 {[%emt 0:01:44]} ({Predecessor:} 11. Nb5 Be7 12. Rb1 Be4 13. d3 Bc6 14. Ne5 Nxe5 15. Bxe5 Bxg2 16. Kxg2 Qd7 17. d4 cxd4 18. Nxd4 {0-1 Kaczmarska,Z-Rogulska,M POL-chT3 Mazowiecki 2011 (1.37)}) 11... e5 {[%emt 0:19:14]} 12. d3 {[%emt 0:03:59]} Re8 {[%emt 0:00:33]} 13. Nh4 {[%emt 0:02:22]} Bxg2 {[%emt 0:03:17]} 14. Nxg2 {[%emt 0:00:36]} Nf8 {[%emt 0:00:22]} 15. Rfd1 {[%emt 0:02:09]} Qd7 {[%emt 0:01:07]} 16. Ne4 {[%emt 0:04:29]} Nxe4 {[%emt 0:08:28]} 17. dxe4 {[%emt 0:00:55]} Qc6 {[%emt 0:00:19]} 18. Qc2 {[%emt 0:04:46]} Bc7 {[%emt 0:08:28]} 19. Nh4 {[%emt 0:00:26]} Nd7 {[%emt 0:00:06]} 20. f3 {[%emt 0:03:05]} Rad8 {[%emt 0:02:53]} 21. g4 {[%emt 0:01:58]} Qf6 {[%emt 0:03:12]} 22. Qf2 $1 {[%emt 0:05:26]} ({Don't blunder} 22. Nf5 $2 g6 23. g5 (23. Qa4 $2 gxf5 24. Rxd7 Qg5 $19) 23... Qxg5+ 24. Kh1 Nf6 $19 (24... gxf5 $2 {is the wrong capture.} 25. Rg1 $18)) 22... Nb8 {[%emt 0:01:14]} 23. Ng2 {[%emt 0:12:25]} Qe6 {[%emt 0:00:23]} 24. Rd5 {[%emt 0:00:43]} Nc6 {[%emt 0:00:18]} 25. Bc3 {[%emt 0:09:44]} Ne7 {[%emt 0:03:06]} 26. Rxd8 {[%emt 0:00:03]} Rxd8 {[%emt 0:00:05]} 27. Qe2 {[%emt 0:00:01]} Qd7 {[%emt 0:05:01]} 28. Rc1 {[%emt 0:02:47]} Qd3 {[%emt 0:04:30]} 29. Qxd3 {[%emt 0:00:47]} Rxd3 {[%emt 0:00:04]} 30. Kf1 {[%emt 0:00:11]} Nc6 {[%emt 0:00:19]} 31. Ke2 {[%emt 0:00:06]} Rd7 {[%emt 0:00:08]} 32. Ne1 {[%emt 0:01:09]} f6 {[%emt 0:03:09]} 33. Nd3 {[%emt 0:04:47]} Kf7 {[%emt 0:00:54]} 34. Be1 {[%emt 0:00:38]} Bd6 {[%emt 0:00:44]} 35. Nb2 {[%emt 0:00:18]} a6 {[%emt 0:00:38]} 36. a4 {[%emt 0:03:58]} Rb7 {[%emt 0:04:08]} 37. Nd1 {[%emt 0:02:03]} b5 {[%emt 0:00:19]} 38. axb5 {[%emt 0:02:36]} axb5 {[%emt 0:00:04]} 39. cxb5 {[%emt 0:01:05]} Rxb5 {[%emt 0:00:05]} 40. Kd3 {[%emt 0:05:27]} Ke6 {[%emt 0:04:34]} 41. Kc4 {[%emt 0:30:41]} Rb7 {[%emt 0:30:21]} 42. Ra1 {[%emt 0:00:17]} Na7 {[%emt 0:05:58]} 43. Bc3 {[%emt 0:03:09]} Nc8 {[%emt 0:02:57]} 44. Nb2 {[%emt 0:02:17]} Kd7 {[%emt 0:00:29]} 45. Kd3 {[%emt 0:07:37]} Ra7 {[%emt 0:00:00]} 46. Rg1 {[%emt 0:00:00]} h6 {[%emt 0:00:00]} 47. h4 {[%emt 0:00:00]} Nb6 {[%emt 0:00:00]} 48. g5 {[%emt 0:00:00]} hxg5 {[%emt 0:00:00]} 49. hxg5 {[%emt 0:00:00]} Ke6 {[%emt 0:00:00]} 50. g6 {[%emt 0:00:00]} Ra3 {[%emt 0:00:00]} 51. Rb1 {[%emt 0:00:00]} Ra2 {[%emt 0:00:00]} 52. Rf1 {[%emt 0:00:00]} Ra3 {[%emt 0:01:39]} 53. Rb1 {[%emt 0:00:52]} Ra2 {[%emt 0:00:26]} 54. Rd1 {[%emt 0:00:11]} c4+ {[%emt 0:01:59]} 55. Nxc4 {[%emt 0:00:54]} Nxc4 {[%emt 0:00:23]} 56. Kxc4 {[%emt 0:00:02]} Rf2 {[%emt 0:01:05]} 57. Ra1 {[%emt 0:00:32]} Rxf3 {[%emt 0:00:09]} 58. Ra6 $2 {[%emt 0:00:02][%mdl 8192]} (58. Bd2 $11) 58... Rxe3 $19 {[%emt 0:00:12]} 59. Ra7 {[%emt 0:01:45]} Rxe4+ {[%emt 0:00:43]} 60. Kd3 {[%emt 0:00:00]} Rg4 {[%emt 0:00:35]} 61. Rxg7 {[%emt 0:00:03]} Kf5 {[%emt 0:06:06]} 0-1

[Event "40th Cappelle Open 2024"]
[Site "Cappelle-la-Grande"]
[Date "2024.03.08"]
[Round "9.8"]
[White "Loiseau, Quentin"]
[Black "Lamard, Guillaume"]
[Result "0-1"]
[ECO "D24"]
[WhiteElo "2412"]
[BlackElo "2483"]
[Annotator "TA"]
[PlyCount "72"]
[EventDate "2024.03.02"]
[EventType "swiss"]
[EventCountry "FRA"]
[SourceTitle "playchess.com"]
[Source "ChessBase"]
[SourceQuality "1"]
[TimeControl "40/5400+30:1800+30"]

{[%evp 9,72,6,48,52,54,47,59,2,12,18,14,6,19,4,14,8,7,-23,-18,-41,-22,-36,-39,-56,0,-141,0,-73,-39,-106,-123,-136,-135,-241,-247,-247,-244,-259,-264,-256,-240,-343,-335,-383,-391,-391,-378,-545,-532,-631,-609,-661,-596,-688,-687,-2039,-1763,-2079,-2167,-2214,-2208,-5314,-5306,-1789,-1701]} 1. d4 {[%emt 0:05:14]} Nf6 {[%emt 0:00:06]} 2. c4 {[%emt 0:00:09]} e6 {[%emt 0:00:04]} 3. Nf3 {[%emt 0:03:31]} d5 {[%emt 0:00:19]} 4. Nc3 {[%emt 0:02:38]} dxc4 {[%emt 0:01:27]} 5. e4 {[%emt 0:06:13][%cal Be2e4,Be4e5][%mdl 32]} b5 {[%emt 0:00:36]} 6. e5 $1 {[%emt 0:01:23]} Nd5 {[%emt 0:00:12]} 7. Nxb5 {[%emt 0:00:01]} Nb6 {[%emt 0:00:49]} 8. h4 {[%emt 0:00:04]} (8. Be2 $14) 8... Nc6 $11 {[%emt 0:04:13]} 9. Be2 {[%emt 0:04:41]} Bb7 {[%emt 0:05:10]} 10. h5 {[%emt 0:04:33]} h6 {[%emt 0:01:36]} 11. Rh4 {[%emt 0:05:19]} Qd7 {[%emt 0:07:20]} 12. a4 {[%emt 0:05:17]} Na5 {[%emt 0:04:05]} 13. Be3 {[%emt 0:14:50]} Nd5 {[%emt 0:15:09]} 14. Rc1 {[%emt 0:06:56]} a6 {[%emt 0:09:16]} 15. Nc3 {[%emt 0:01:14]} Rb8 {[%emt 0:00:30]} 16. Kf1 {[%emt 0:21:43]} Bc6 {[%emt 0:17:50]} (16... Nxe3+ $15 17. fxe3 c5) 17. Nxd5 {[%emt 0:02:27]} (17. Bd2 $11 {remains equal.}) 17... Bxd5 {[%emt 0:01:30]} (17... exd5 $17 18. Kg1 Bxa4) 18. Bd2 {[%emt 0:04:06]} (18. Nd2 $11 {keeps the balance.}) 18... Nb3 {[%emt 0:01:36]} 19. Bxc4 {[%emt 0:05:11] Black converts the advantage convincingly.} (19. Rc2 $1 $15) 19... Nxc1 $17 {[%emt 0:07:02]} (19... Qxa4 $2 20. Bxd5 exd5 21. Rxc7 Nxd2+ 22. Qxd2 $18) 20. Qxc1 {[%emt 0:00:48]} Bb4 {[%emt 0:04:10]} (20... Qxa4 21. Bxd5 exd5 22. Kg1 $15) 21. Bxb4 {[%emt 0:03:26]} (21. Kg1 $17 {is a better defense.}) 21... Rxb4 $19 {[%emt 0:00:36]} 22. Bxd5 {[%emt 0:00:09]} Qxd5 {[%emt 0:01:50]} (22... exd5 23. Qf4 $17) 23. Kg1 {[%emt 0:01:23]} O-O {[%emt 0:05:35]} (23... Rxa4 24. b3 Rb4 (24... Qxb3 $2 25. Qc6+ Kd8 26. Qa8+ Kd7 27. Qxh8 $18) 25. Rg4 $11) 24. Rg4 {[%emt 0:00:07]} Kh8 {[%emt 0:00:06]} (24... Rxa4 25. Qxh6) 25. Qf4 {[%emt 0:00:12]} (25. Qxc7 $142 Qb7 (25... Rxb2 $2 26. Qe7 $19) (25... Rxa4 $2 26. Kh2 $19) 26. Qxb7 Rxb7 27. d5 exd5 (27... Rxb2 28. d6 $17) 28. b4) 25... c5 {[%emt 0:02:42]} (25... Rxb2 26. Qg3) (25... Rxa4 26. Rg6 Kh7 (26... fxg6 $2 27. Qxf8+ Kh7 28. hxg6+ Kxg6 29. Qe8+ Kh7 30. Qxa4 $18) 27. Rg4 $19) 26. Nh4 {[%emt 0:01:24] [#] Black must now prevent Ng6+.} Qd8 {[%emt 0:04:47][%cal Rb4d4]} (26... Rxb2 $2 {is the wrong capture.} 27. Ng6+ Kg8 28. Ne7+ (28. Nxf8 Kxf8 29. dxc5 Rc2 $11) 28... Kh8 29. Nxd5 $18) 27. Nf3 {[%emt 0:00:24]} cxd4 {[%emt 0:00:40]} ({Much less strong is} 27... Rxb2 28. dxc5 Rc2 29. Qg3 $19) ({Don't play} 27... Rxa4 28. Qd2) 28. Nxd4 {[%emt 0:00:21]} (28. Qd2 {was worth a try.} Qb6 (28... Rxa4 $2 29. b3 $19) 29. b3) 28... Rxa4 {[%emt 0:00:59] Black is clearly winning.} 29. b3 {[%emt 0:00:19]} Rb4 {[%emt 0:00:29]} 30. Kh2 {[%emt 0:00:53]} a5 {[%emt 0:00:57] [#] Strongly threatening ...Qd7.} 31. Kg3 {[%emt 0:00:22]} Qd5 {[%emt 0:01:07] And now ...Rd8 would win.} 32. f3 {[%emt 0:00:34]} Rd8 {[%emt 0:01:44][%cal Rb4d4]} 33. Rxg7 {[%emt 0:00:34]} Kxg7 {[%emt 0:00:05]} 34. Qf6+ {[%emt 0:00:03]} Kg8 {[%emt 0:01:27]} 35. Nc6 {[%emt 0:00:04]} Qxc6 {[%emt 0:00:42]} 36. Qxd8+ {[%emt 0:00:03]} Kh7 {[%emt 0:00:03] Weighted Error Value: White=0.87/Black=0.15 (very precise) .  Mistake:       	White=7     	Black=2      Inaccurate:     	White=2     	Black=1      OK:         	White=6     	Black=11     Best:        	White=1     	---} 0-1